[Event "***Titled Tuesday 3|2 Blitz"]
[Site "Chess.com"]
[Date "2017.02.07"]
[Round "9"]
[White "Gergo85"]
[Black "Incognito_Knight"]
[Result "0-1"]
[WhiteElo "2425"]
[BlackElo "2334"]
[TimeControl "180+2"]
[EndTime "15:15:40 PST"]
[Termination "Incognito_Knight won on time"]

1. e4 {[%clk 0:03:02]} 1... c5 {[%clk 0:03:00.7]} 2. Nf3 {[%clk 0:03:02.5]} 2...
e6 {[%clk 0:03:02.1]} 3. b3 {[%clk 0:03:02.2]} 3... b6 {[%clk 0:03:00.7]} 4. Bb2
{[%clk 0:03:02.8]} 4... Bb7 {[%clk 0:03:02.1]} 5. Qe2 {[%clk 0:03:04.5]} 5... d6
{[%clk 0:02:59.4]} 6. Nc3 {[%clk 0:02:54.5]} 6... Nf6 {[%clk 0:02:55.6]} 7. d4
{[%clk 0:02:54.1]} 7... cxd4 {[%clk 0:02:53.1]} 8. Nxd4 {[%clk 0:02:56]} 8...
Be7 {[%clk 0:02:49.3]} 9. O-O-O {[%clk 0:02:55.1]} 9... O-O {[%clk 0:02:48.5]}
10. g4 {[%clk 0:02:53.3]} 10... Nfd7 {[%clk 0:02:30.4]} 11. h4 {[%clk
0:02:49.2]} 11... Bxh4 {[%clk 0:02:27.7]} 12. Kb1 {[%clk 0:02:44.5]} 12... Bg5
{[%clk 0:02:23.3]} 13. Ndb5 {[%clk 0:02:29.6]} 13... Ba6 {[%clk 0:02:00.6]} 14.
Qf3 {[%clk 0:02:14.6]} 14... Ne5 {[%clk 0:01:56.8]} 15. Qg3 {[%clk 0:02:08.1]}
15... Ng6 {[%clk 0:01:51.5]} 16. Nxd6 {[%clk 0:01:59.7]} 16... Bxf1 {[%clk
0:01:47.9]} 17. Nxf7 {[%clk 0:01:21.7]} 17... Qe7 {[%clk 0:01:28.8]} 18. Nxg5
{[%clk 0:01:22.3]} 18... Qxg5 {[%clk 0:01:28]} 19. Rhxf1 {[%clk 0:01:23.3]}
19... Nc6 {[%clk 0:01:24.8]} 20. Ne2 {[%clk 0:01:12.1]} 20... Rad8 {[%clk
0:01:01.3]} 21. Rxd8 {[%clk 0:01:06.1]} 21... Rxd8 {[%clk 0:01:03.2]} 22. Qc3
{[%clk 0:00:56.9]} 22... Nce5 {[%clk 0:00:44.5]} 23. Nc1 {[%clk 0:00:26.2]}
23... Qd2 {[%clk 0:00:34.7]} 24. Qg3 {[%clk 0:00:17.4]} 24... Nc6 {[%clk
0:00:30.3]} 25. Nd3 {[%clk 0:00:16.7]} 25... e5 {[%clk 0:00:22.5]} 26. f4 {[%clk
0:00:14]} 26... exf4 {[%clk 0:00:19.9]} 27. Nxf4 {[%clk 0:00:12.6]} 27... Nb4
{[%clk 0:00:19.3]} 28. Qc3 {[%clk 0:00:04.1]} 28... Qd1+ {[%clk 0:00:17.2]} 29.
Rxd1 {[%clk 0:00:03.2]} 29... Rxd1+ {[%clk 0:00:19.1]} 30. Bc1 {[%clk
0:00:04.8]} 30... Rxc1+ {[%clk 0:00:20.4]} 31. Kxc1 {[%clk 0:00:02.3]} 31...
Nxa2+ {[%clk 0:00:21.3]} 32. Kb2 {[%clk 0:00:03.3]} 32... Nxc3 {[%clk
0:00:23.2]} 33. Nxg6 {[%clk 0:00:04.3]} 33... Nxe4 {[%clk 0:00:22]} 34. Ne7+
{[%clk 0:00:04.8]} 34... Kf7 {[%clk 0:00:23.3]} 35. Nc8 {[%clk 0:00:06.7]} 35...
g6 {[%clk 0:00:19.2]} 36. Nxa7 {[%clk 0:00:07.6]} 36... h5 {[%clk 0:00:20.3]}
37. gxh5 {[%clk 0:00:08.8]} 37... gxh5 {[%clk 0:00:21.7]} 38. Nc6 {[%clk
0:00:08.8]} 38... Kf6 {[%clk 0:00:22.2]} 39. Nd4 {[%clk 0:00:09.9]} 39... h4
{[%clk 0:00:23.1]} 40. Nf3 {[%clk 0:00:08.9]} 40... h3 {[%clk 0:00:24.4]} 41. c4
{[%clk 0:00:08.1]} 41... Kf5 {[%clk 0:00:22.5]} 42. Kc2 {[%clk 0:00:07.5]} 42...
Kf4 {[%clk 0:00:23]} 43. Nh2 {[%clk 0:00:04.9]} 43... Kg3 {[%clk 0:00:18.1]} 44.
Nf1+ {[%clk 0:00:06]} 44... Kf2 {[%clk 0:00:14.7]} 45. Nh2 {[%clk 0:00:07.1]}
45... Kg2 {[%clk 0:00:15.9]} 46. Ng4 {[%clk 0:00:08.4]} 46... Nf2 {[%clk
0:00:16.7]} 47. Ne3+ {[%clk 0:00:09]} 47... Kg1 {[%clk 0:00:16.4]} 48. Nf5
{[%clk 0:00:03.4]} 48... h2 {[%clk 0:00:17.2]} 49. Ng3 {[%clk 0:00:04.6]} 49...
Kg2 {[%clk 0:00:17.6]} 50. Ne2 {[%clk 0:00:05.9]} 50... h1=Q {[%clk 0:00:17.1]}
0-1

[Event "***Titled Tuesday 3|2 Blitz"]
[Site "Chess.com"]
[Date "2017.02.07"]
[Round "9"]
[White "Aguiar94"]
[Black "AkshatChandra"]
[Result "0-1"]
[WhiteElo "2456"]
[BlackElo "2634"]
[TimeControl "180+2"]
[EndTime "15:15:54 PST"]
[Termination "AkshatChandra won by resignation"]

1. e4 {[%clk 0:03:02]} 1... c5 {[%clk 0:03:00.3]} 2. Nf3 {[%clk 0:03:03.1]} 2...
d6 {[%clk 0:03:01.9]} 3. d4 {[%clk 0:03:04.3]} 3... cxd4 {[%clk 0:03:03.8]} 4.
Nxd4 {[%clk 0:03:06.2]} 4... Nf6 {[%clk 0:03:04.3]} 5. Nc3 {[%clk 0:03:07.4]}
5... a6 {[%clk 0:03:00.8]} 6. h3 {[%clk 0:03:07.3]} 6... e5 {[%clk 0:02:58.3]}
7. Nde2 {[%clk 0:03:08.8]} 7... b5 {[%clk 0:02:59.1]} 8. g4 {[%clk 0:03:09.1]}
8... b4 {[%clk 0:02:56.7]} 9. Nd5 {[%clk 0:03:09.4]} 9... Nxd5 {[%clk
0:02:58.1]} 10. Qxd5 {[%clk 0:03:08.2]} 10... Ra7 {[%clk 0:02:59]} 11. Be3
{[%clk 0:03:08]} 11... Be6 {[%clk 0:02:59.2]} 12. Qd2 {[%clk 0:03:05.8]} 12...
Rd7 {[%clk 0:03:00.1]} 13. Bg2 {[%clk 0:02:58.5]} 13... d5 {[%clk 0:02:30.1]}
14. exd5 {[%clk 0:02:21.1]} 14... Bxd5 {[%clk 0:02:32]} 15. Bxd5 {[%clk
0:02:23]} 15... Rxd5 {[%clk 0:02:31.6]} 16. Qc1 {[%clk 0:02:24.4]} 16... Be7
{[%clk 0:02:27.9]} 17. c4 {[%clk 0:02:14.7]} 17... Rd3 {[%clk 0:02:00.7]} 18.
Qc2 {[%clk 0:02:09]} 18... h5 {[%clk 0:01:59.1]} 19. Rg1 {[%clk 0:01:57.8]}
19... hxg4 {[%clk 0:01:51.1]} 20. hxg4 {[%clk 0:01:59.7]} 20... Rh3 {[%clk
0:01:18.6]} 21. Ng3 {[%clk 0:01:33.3]} 21... Bh4 {[%clk 0:00:55.7]} 22. Ke2
{[%clk 0:01:28.9]} 22... Rxe3+ {[%clk 0:00:39.6]} 23. Kxe3 {[%clk 0:01:27.9]}
23... Qg5+ {[%clk 0:00:39.4]} 24. Kd3 {[%clk 0:01:13.6]} 24... e4+ {[%clk
0:00:23.4]} 25. Ke2 {[%clk 0:01:06.4]} 25... Qxg4+ {[%clk 0:00:23.8]} 26. Ke1
{[%clk 0:00:59.6]} 26... Bxg3 {[%clk 0:00:13.4]} 27. fxg3 {[%clk 0:01:00.4]}
27... Rxg3 {[%clk 0:00:08.7]} 28. Rxg3 {[%clk 0:00:59.9]} 28... Qxg3+ {[%clk
0:00:10.6]} 29. Qf2 {[%clk 0:01:01.7]} 29... Qe5 {[%clk 0:00:07]} 30. Rd1 {[%clk
0:00:58.7]} 30... Nd7 {[%clk 0:00:06.7]} 31. Rd5 {[%clk 0:00:58.7]} 31... Qe6
{[%clk 0:00:07.4]} 32. Qa7 {[%clk 0:00:55.5]} 32... f5 {[%clk 0:00:04.5]} 33.
Qb7 {[%clk 0:00:44.3]} 33... f4 {[%clk 0:00:05]} 34. c5 {[%clk 0:00:41.3]} 34...
Qh3 {[%clk 0:00:05.3]} 35. c6 {[%clk 0:00:35.4]} 35... Qh1+ {[%clk 0:00:06.3]}
36. Kd2 {[%clk 0:00:35.6]} 36... e3+ {[%clk 0:00:07.4]} 37. Kc2 {[%clk
0:00:36.9]} 37... Qxd5 {[%clk 0:00:04.1]} 38. cxd7+ {[%clk 0:00:37.6]} 38...
Qxd7 {[%clk 0:00:06]} 39. Qb8+ {[%clk 0:00:35.7]} 39... Qd8 {[%clk 0:00:05.9]}
40. Qxf4 {[%clk 0:00:33.8]} 40... Qe7 {[%clk 0:00:07.3]} 41. Qb8+ {[%clk
0:00:33.5]} 41... Kf7 {[%clk 0:00:08.1]} 42. Qf4+ {[%clk 0:00:34.9]} 42... Kg8
{[%clk 0:00:09.1]} 43. Qc4+ {[%clk 0:00:35]} 43... Kh7 {[%clk 0:00:08]} 44. Qd3+
{[%clk 0:00:26.8]} 44... g6 {[%clk 0:00:08.7]} 45. Kd1 {[%clk 0:00:28]} 45...
Qe5 {[%clk 0:00:05]} 46. Qd7+ {[%clk 0:00:25.7]} 46... Kh6 {[%clk 0:00:05.5]}
47. Qh3+ {[%clk 0:00:26.4]} 47... Kg5 {[%clk 0:00:07]} 48. Qg2+ {[%clk
0:00:23.9]} 48... Kf5 {[%clk 0:00:06.5]} 49. Qh3+ {[%clk 0:00:22.5]} 49... Kf6
{[%clk 0:00:07.9]} 50. Qf3+ {[%clk 0:00:22.3]} 50... Kg7 {[%clk 0:00:08.8]} 51.
Qb7+ {[%clk 0:00:22.2]} 51... Kf6 {[%clk 0:00:09.7]} 52. Qf3+ {[%clk 0:00:23]}
52... Qf5 {[%clk 0:00:09.2]} 53. Qxe3 {[%clk 0:00:18.3]} 53... Qb1+ {[%clk
0:00:10.1]} 54. Ke2 {[%clk 0:00:17.3]} 54... Qxb2+ {[%clk 0:00:10.8]} 55. Kf3
{[%clk 0:00:18.7]} 55... Qc3 {[%clk 0:00:11.7]} 0-1

[Event "***Titled Tuesday 3|2 Blitz"]
[Site "Chess.com"]
[Date "2017.02.07"]
[Round "9"]
[White "Evgeny_Levin"]
[Black "Alexander_Moskalenko"]
[Result "0-1"]
[WhiteElo "2780"]
[BlackElo "2718"]
[TimeControl "180+2"]
[EndTime "15:16:09 PST"]
[Termination "Alexander_Moskalenko won by checkmate"]

1. d4 {[%clk 0:03:02]} 1... d5 {[%clk 0:03:02]} 2. c4 {[%clk 0:03:02.6]} 2...
Nc6 {[%clk 0:03:03.6]} 3. Nc3 {[%clk 0:02:56.6]} 3... dxc4 {[%clk 0:03:04.3]} 4.
d5 {[%clk 0:02:56]} 4... Ne5 {[%clk 0:03:03.6]} 5. Qd4 {[%clk 0:02:56.3]} 5...
Ng6 {[%clk 0:03:01.8]} 6. e4 {[%clk 0:02:51.9]} 6... e5 {[%clk 0:03:02.9]} 7.
Qxc4 {[%clk 0:02:49.2]} 7... a6 {[%clk 0:03:04.4]} 8. Nf3 {[%clk 0:02:47.9]}
8... Bd6 {[%clk 0:03:05.6]} 9. Be2 {[%clk 0:02:44.2]} 9... Bd7 {[%clk
0:03:06.4]} 10. O-O {[%clk 0:02:40.1]} 10... Nf6 {[%clk 0:03:06.6]} 11. Rd1
{[%clk 0:02:31.4]} 11... O-O {[%clk 0:03:07.5]} 12. a3 {[%clk 0:02:26.2]} 12...
Nh5 {[%clk 0:03:00.8]} 13. g3 {[%clk 0:02:21.9]} 13... h6 {[%clk 0:02:57.1]} 14.
Be3 {[%clk 0:02:19.6]} 14... Nf6 {[%clk 0:02:57.7]} 15. Nd2 {[%clk 0:02:18.6]}
15... Ng4 {[%clk 0:02:50.6]} 16. Bxg4 {[%clk 0:02:13.6]} 16... Bxg4 {[%clk
0:02:52.5]} 17. f3 {[%clk 0:02:15.3]} 17... Bd7 {[%clk 0:02:52.7]} 18. Rac1
{[%clk 0:02:11.5]} 18... Kh7 {[%clk 0:02:38.9]} 19. Qb3 {[%clk 0:01:55.6]} 19...
b5 {[%clk 0:02:31.5]} 20. Qc2 {[%clk 0:01:52.6]} 20... Rc8 {[%clk 0:02:12.4]}
21. Nb3 {[%clk 0:01:49]} 21... f5 {[%clk 0:02:12]} 22. exf5 {[%clk 0:01:42.7]}
22... Bxf5 {[%clk 0:02:13.9]} 23. Ne4 {[%clk 0:01:43.8]} 23... Qd7 {[%clk
0:02:08.8]} 24. Nbc5 {[%clk 0:01:40.9]} 24... Qf7 {[%clk 0:02:09.7]} 25. Qe2
{[%clk 0:01:22.6]} 25... Ne7 {[%clk 0:02:07.8]} 26. Qd2 {[%clk 0:01:00.7]} 26...
Qg6 {[%clk 0:01:56]} 27. Bf2 {[%clk 0:00:54.6]} 27... Rcd8 {[%clk 0:01:39.7]}
28. Qe2 {[%clk 0:00:48.1]} 28... Qf7 {[%clk 0:01:40.8]} 29. Nxa6 {[%clk
0:00:46.1]} 29... Nxd5 {[%clk 0:01:38.9]} 30. Nac5 {[%clk 0:00:44.9]} 30... Bg6
{[%clk 0:01:40.2]} 31. Rd3 {[%clk 0:00:42.5]} 31... Bxc5 {[%clk 0:01:30.6]} 32.
Rxc5 {[%clk 0:00:38.1]} 32... Bh5 {[%clk 0:01:25.9]} 33. Qc2 {[%clk 0:00:32.2]}
33... Kg8 {[%clk 0:01:27.1]} 34. Qb3 {[%clk 0:00:28.3]} 34... c6 {[%clk
0:01:22.9]} 35. Rxc6 {[%clk 0:00:26.6]} 35... Bxf3 {[%clk 0:01:22]} 36. Nd6
{[%clk 0:00:26.9]} 36... Qe6 {[%clk 0:01:16.9]} 37. Rxf3 {[%clk 0:00:23.1]}
37... Rxf3 {[%clk 0:01:17.9]} 38. Qxf3 {[%clk 0:00:24.9]} 38... Rxd6 {[%clk
0:01:19.8]} 39. Rxd6 {[%clk 0:00:24.6]} 39... Qxd6 {[%clk 0:01:21.7]} 40. Qe2
{[%clk 0:00:23.5]} 40... Nf6 {[%clk 0:01:11.6]} 41. Qxb5 {[%clk 0:00:21.9]}
41... Qd1+ {[%clk 0:01:13.1]} 42. Qf1 {[%clk 0:00:21.4]} 42... Qc2 {[%clk
0:01:14.6]} 43. b4 {[%clk 0:00:20.4]} 43... e4 {[%clk 0:01:09.5]} 44. h3 {[%clk
0:00:15.6]} 44... Nd5 {[%clk 0:01:10.7]} 45. Qe1 {[%clk 0:00:13.7]} 45... Qd3
{[%clk 0:01:09.9]} 46. Qf1 {[%clk 0:00:14.7]} 46... Qf3 {[%clk 0:01:03.8]} 47.
Qc4 {[%clk 0:00:14.5]} 47... e3 {[%clk 0:00:54.7]} 48. Be1 {[%clk 0:00:15.1]}
48... Qd1 {[%clk 0:00:43.8]} 49. Qc8+ {[%clk 0:00:15.1]} 49... Kf7 {[%clk
0:00:45.2]} 50. Qf5+ {[%clk 0:00:13.6]} 50... Nf6 {[%clk 0:00:46.3]} 51. Kf1
{[%clk 0:00:08.8]} 51... Qc1 {[%clk 0:00:47.5]} 52. Qd3 {[%clk 0:00:08.2]} 52...
Ke6 {[%clk 0:00:42.1]} 53. Qa6+ {[%clk 0:00:07.8]} 53... Ke5 {[%clk 0:00:38]}
54. Qb5+ {[%clk 0:00:08.1]} 54... Nd5 {[%clk 0:00:38]} 55. Qd3 {[%clk
0:00:06.3]} 55... Qb2 {[%clk 0:00:34.1]} 56. a4 {[%clk 0:00:04.4]} 56... Qh2
{[%clk 0:00:35.5]} 57. Bc3+ {[%clk 0:00:03.8]} 57... Kd6 {[%clk 0:00:35.9]} 58.
Qa6+ {[%clk 0:00:03.2]} 58... Kd7 {[%clk 0:00:36.5]} 59. Qb5+ {[%clk 0:00:03.2]}
59... Kd6 {[%clk 0:00:35.7]} 60. Qc5+ {[%clk 0:00:03.6]} 60... Ke6 {[%clk
0:00:34.8]} 61. Qc6+ {[%clk 0:00:04.5]} 61... Ke7 {[%clk 0:00:36.5]} 62. Qxd5
{[%clk 0:00:06.2]} 62... Qf2# {[%clk 0:00:37.3]} 0-1

[Event "***Titled Tuesday 3|2 Blitz"]
[Site "Chess.com"]
[Date "2017.02.07"]
[Round "9"]
[White "VMikhalevski"]
[Black "BillieKimbah"]
[Result "0-1"]
[WhiteElo "2539"]
[BlackElo "2629"]
[TimeControl "180+2"]
[EndTime "15:16:32 PST"]
[Termination "BillieKimbah won by resignation"]

1. Nf3 {[%clk 0:03:02]} 1... Nf6 {[%clk 0:02:59.5]} 2. g3 {[%clk 0:03:02]} 2...
b6 {[%clk 0:02:59]} 3. Bg2 {[%clk 0:03:01.9]} 3... Bb7 {[%clk 0:03:00]} 4. O-O
{[%clk 0:03:02.8]} 4... e6 {[%clk 0:03:00.7]} 5. c4 {[%clk 0:03:01.3]} 5... Be7
{[%clk 0:02:59.4]} 6. d4 {[%clk 0:02:59.8]} 6... O-O {[%clk 0:02:59.2]} 7. d5
{[%clk 0:03:00.7]} 7... exd5 {[%clk 0:02:54.5]} 8. Nh4 {[%clk 0:03:01.2]} 8...
c6 {[%clk 0:02:55]} 9. cxd5 {[%clk 0:03:01.3]} 9... Nxd5 {[%clk 0:02:55.5]} 10.
Nf5 {[%clk 0:03:01]} 10... Bf6 {[%clk 0:02:53.5]} 11. e4 {[%clk 0:02:59.9]}
11... Ne7 {[%clk 0:02:52.4]} 12. Nd6 {[%clk 0:02:57.8]} 12... Ba6 {[%clk
0:02:53.1]} 13. Re1 {[%clk 0:02:58]} 13... Be5 {[%clk 0:02:50.9]} 14. f4 {[%clk
0:02:50.3]} 14... Bxd6 {[%clk 0:02:48.6]} 15. Qxd6 {[%clk 0:02:50.9]} 15... c5
{[%clk 0:02:38.2]} 16. Nc3 {[%clk 0:02:43.8]} 16... Nbc6 {[%clk 0:02:37.2]} 17.
Be3 {[%clk 0:02:44.5]} 17... Nb4 {[%clk 0:02:32.9]} 18. Rac1 {[%clk 0:02:30.4]}
18... Nd3 {[%clk 0:02:25.9]} 19. Bf1 {[%clk 0:02:29.5]} 19... Nxe1 {[%clk
0:02:17.1]} 20. Bxa6 {[%clk 0:02:29]} 20... Nf3+ {[%clk 0:02:17.6]} 21. Kg2
{[%clk 0:02:27.4]} 21... Nd4 {[%clk 0:02:18.3]} 22. Bxd4 {[%clk 0:01:45.7]}
22... cxd4 {[%clk 0:02:18.8]} 23. Qxd4 {[%clk 0:01:45.2]} 23... Nc6 {[%clk
0:02:15.3]} 24. Qd6 {[%clk 0:01:43.2]} 24... Re8 {[%clk 0:02:08.3]} 25. Rd1
{[%clk 0:01:39]} 25... Qe7 {[%clk 0:01:52.5]} 26. e5 {[%clk 0:01:24.3]} 26...
Rad8 {[%clk 0:01:41.8]} 27. Nb5 {[%clk 0:01:14.6]} 27... Qe6 {[%clk 0:01:33.3]}
28. Nc7 {[%clk 0:00:56.7]} 28... Qxd6 {[%clk 0:00:55.8]} 29. Rxd6 {[%clk
0:00:56.3]} 29... Rf8 {[%clk 0:00:53.9]} 30. a3 {[%clk 0:00:50.1]} 30... Nb8
{[%clk 0:00:46.8]} 31. Bb7 {[%clk 0:00:22.7]} 31... f6 {[%clk 0:00:47.6]} 32.
exf6 {[%clk 0:00:23.6]} 32... Rxf6 {[%clk 0:00:46.8]} 33. Rd2 {[%clk 0:00:23]}
33... Kf8 {[%clk 0:00:42]} 34. Kf3 {[%clk 0:00:20.2]} 34... Nc6 {[%clk
0:00:39.9]} 35. g4 {[%clk 0:00:16.4]} 35... g5 {[%clk 0:00:35.7]} 36. f5 {[%clk
0:00:15.8]} 36... Ne5+ {[%clk 0:00:36.6]} 37. Kg3 {[%clk 0:00:12]} 37... h5
{[%clk 0:00:32.3]} 38. h3 {[%clk 0:00:10.9]} 38... h4+ {[%clk 0:00:27.7]} 39.
Kf2 {[%clk 0:00:10.3]} 39... Rb8 {[%clk 0:00:27.8]} 40. Ba6 {[%clk 0:00:08.9]}
40... Nf7 {[%clk 0:00:25.8]} 41. Nb5 {[%clk 0:00:08.6]} 41... Rd8 {[%clk
0:00:20]} 42. Bb7 {[%clk 0:00:07.7]} 42... d5 {[%clk 0:00:16.8]} 43. Bxd5 {[%clk
0:00:07.4]} 43... a6 {[%clk 0:00:17.4]} 44. Nc7 {[%clk 0:00:06.2]} 44... Rd7
{[%clk 0:00:10.7]} 45. Nxa6 {[%clk 0:00:06.5]} 45... Rfd6 {[%clk 0:00:09.8]} 46.
Nb4 {[%clk 0:00:07.5]} 46... Ne5 {[%clk 0:00:11]} 47. Rd4 {[%clk 0:00:07.2]}
47... Nc6 {[%clk 0:00:10.1]} 48. Bxc6 {[%clk 0:00:05.9]} 48... Rxd4 {[%clk
0:00:11.2]} 49. Bxd7 {[%clk 0:00:07.1]} 49... Rxd7 {[%clk 0:00:12.8]} 50. Ke3
{[%clk 0:00:08.3]} 50... Rd1 {[%clk 0:00:13.7]} 51. Ke4 {[%clk 0:00:08.8]} 51...
Rh1 {[%clk 0:00:13.6]} 52. f6 {[%clk 0:00:09.8]} 52... Rxh3 {[%clk 0:00:14.6]}
53. Kf5 {[%clk 0:00:11.1]} 53... Rf3+ {[%clk 0:00:15.2]} 54. Kxg5 {[%clk
0:00:10.9]} 54... h3 {[%clk 0:00:16.7]} 55. Nc6 {[%clk 0:00:11.3]} 55... h2
{[%clk 0:00:16.9]} 56. Ne5 {[%clk 0:00:12.4]} 56... h1=Q {[%clk 0:00:15.6]} 57.
Kg6 {[%clk 0:00:10.8]} 57... Qb1+ {[%clk 0:00:12.5]} 58. Kg5 {[%clk 0:00:11.7]}
58... Rf1 {[%clk 0:00:13.2]} 59. Ng6+ {[%clk 0:00:11.1]} 59... Kf7 {[%clk
0:00:14]} 60. Nh8+ {[%clk 0:00:10.9]} 60... Ke6 {[%clk 0:00:14.8]} 61. f7 {[%clk
0:00:11.9]} 61... Rxf7 {[%clk 0:00:14.2]} 0-1

[Event "***Titled Tuesday 3|2 Blitz"]
[Site "Chess.com"]
[Date "2017.02.07"]
[Round "9"]
[White "martinique24"]
[Black "Kouzari"]
[Result "1-0"]
[WhiteElo "2355"]
[BlackElo "2487"]
[TimeControl "180+2"]
[EndTime "15:16:34 PST"]
[Termination "martinique24 won by resignation"]

1. e4 {[%clk 0:03:02]} 1... c5 {[%clk 0:02:59.6]} 2. Nf3 {[%clk 0:03:02.2]} 2...
e6 {[%clk 0:03:01.5]} 3. d4 {[%clk 0:03:02.8]} 3... cxd4 {[%clk 0:03:02.1]} 4.
Nxd4 {[%clk 0:03:04.7]} 4... a6 {[%clk 0:03:04]} 5. c4 {[%clk 0:03:03.8]} 5...
Nf6 {[%clk 0:03:00.9]} 6. Nc3 {[%clk 0:03:05]} 6... Qc7 {[%clk 0:03:01.2]} 7. a3
{[%clk 0:03:05.9]} 7... b6 {[%clk 0:03:01.7]} 8. Be3 {[%clk 0:03:04.9]} 8... Bb7
{[%clk 0:03:03.6]} 9. f3 {[%clk 0:03:06]} 9... d6 {[%clk 0:03:04.9]} 10. Be2
{[%clk 0:03:06.9]} 10... Be7 {[%clk 0:03:06.8]} 11. O-O {[%clk 0:03:08.1]} 11...
O-O {[%clk 0:03:08.7]} 12. Qd2 {[%clk 0:03:09.6]} 12... Nbd7 {[%clk 0:03:10.6]}
13. Rfc1 {[%clk 0:03:09.8]} 13... Rac8 {[%clk 0:03:12]} 14. b4 {[%clk 0:03:09]}
14... Rfe8 {[%clk 0:03:12.9]} 15. Kh1 {[%clk 0:03:09.8]} 15... Ne5 {[%clk
0:03:09.9]} 16. Na4 {[%clk 0:03:10.1]} 16... Nfd7 {[%clk 0:03:09.3]} 17. Bf1
{[%clk 0:03:08.6]} 17... h5 {[%clk 0:03:10.4]} 18. Bg5 {[%clk 0:02:49.4]} 18...
Bf6 {[%clk 0:02:46.4]} 19. Bxf6 {[%clk 0:02:38.5]} 19... Nxf6 {[%clk 0:02:48.3]}
20. Qg5 {[%clk 0:02:38]} 20... Ng6 {[%clk 0:02:22.6]} 21. h4 {[%clk 0:02:22.9]}
21... Qd8 {[%clk 0:02:14.5]} 22. Ne2 {[%clk 0:02:00.9]} 22... Bc6 {[%clk
0:01:57.4]} 23. Nac3 {[%clk 0:01:56.4]} 23... Bb7 {[%clk 0:01:51.5]} 24. Na4
{[%clk 0:01:40.8]} 24... Bc6 {[%clk 0:01:51.4]} 25. Nac3 {[%clk 0:01:40.1]}
25... Bb7 {[%clk 0:01:52.6]} 26. Nd4 {[%clk 0:01:36.3]} 26... Ne5 {[%clk
0:01:46]} 27. Na4 {[%clk 0:01:24.6]} 27... g6 {[%clk 0:01:47.1]} 28. Rd1 {[%clk
0:01:01.3]} 28... Nxc4 {[%clk 0:01:37.5]} 29. Bxc4 {[%clk 0:00:58.9]} 29... Rxc4
{[%clk 0:01:38.5]} 30. Nxb6 {[%clk 0:00:55.2]} 30... Qxb6 {[%clk 0:01:17.7]} 31.
Qxf6 {[%clk 0:00:54.9]} 31... Qd8 {[%clk 0:01:15.8]} 32. Qxd8 {[%clk 0:00:51.3]}
32... Rxd8 {[%clk 0:01:17]} 33. Rac1 {[%clk 0:00:48.1]} 33... d5 {[%clk
0:01:08.1]} 34. Nb3 {[%clk 0:00:39.1]} 34... Rxc1 {[%clk 0:01:06.2]} 35. Nxc1
{[%clk 0:00:39.7]} 35... Rc8 {[%clk 0:01:07.5]} 36. exd5 {[%clk 0:00:38.1]}
36... Bxd5 {[%clk 0:01:07.7]} 37. Ne2 {[%clk 0:00:37.1]} 37... Rc4 {[%clk
0:01:06.9]} 38. Rd4 {[%clk 0:00:29.8]} 38... Kg7 {[%clk 0:00:55.4]} 39. Kg1
{[%clk 0:00:27.6]} 39... Rc2 {[%clk 0:00:51.4]} 40. Nf4 {[%clk 0:00:26.1]} 40...
Bc4 {[%clk 0:00:51.8]} 41. Rd7 {[%clk 0:00:21]} 41... e5 {[%clk 0:00:49.1]} 42.
Nh3 {[%clk 0:00:22.1]} 42... Be6 {[%clk 0:00:50.1]} 43. Rd6 {[%clk 0:00:22]}
43... Bxh3 {[%clk 0:00:49.8]} 44. gxh3 {[%clk 0:00:23.9]} 44... Rc3 {[%clk
0:00:51.2]} 45. Rxa6 {[%clk 0:00:24.5]} 45... Rxf3 {[%clk 0:00:52.3]} 46. b5
{[%clk 0:00:26.1]} 46... Rb3 {[%clk 0:00:51.2]} 47. b6 {[%clk 0:00:26.9]} 47...
Kf6 {[%clk 0:00:38.4]} 48. a4 {[%clk 0:00:28.3]} 48... Ke7 {[%clk 0:00:39.7]}
49. a5 {[%clk 0:00:27.6]} 49... Kd6 {[%clk 0:00:39]} 50. Ra8 {[%clk 0:00:27.6]}
50... Kc6 {[%clk 0:00:38]} 51. Rc8+ {[%clk 0:00:25.6]} 51... Kd7 {[%clk
0:00:25]} 52. Rc7+ {[%clk 0:00:23.5]} 52... Kd6 {[%clk 0:00:26.4]} 53. Rxf7
{[%clk 0:00:22.3]} 53... Rb5 {[%clk 0:00:27.6]} 54. Ra7 {[%clk 0:00:21.5]} 54...
Kc6 {[%clk 0:00:23.8]} 55. Kf2 {[%clk 0:00:22.2]} 55... Rb3 {[%clk 0:00:22.7]}
56. Rc7+ {[%clk 0:00:23]} 56... Kd6 {[%clk 0:00:23.8]} 57. Ke2 {[%clk
0:00:17.6]} 57... e4 {[%clk 0:00:24.1]} 58. Rg7 {[%clk 0:00:17.7]} 58... Ra3
{[%clk 0:00:14.6]} 59. Rxg6+ {[%clk 0:00:18.4]} 59... Kc5 {[%clk 0:00:14.4]} 60.
b7 {[%clk 0:00:17.2]} 60... Rb3 {[%clk 0:00:15.5]} 61. Rb6 {[%clk 0:00:18]}
61... Rxh3 {[%clk 0:00:15.7]} 62. b8=Q {[%clk 0:00:18.2]} 1-0